[Event "Early-Titled-Tuesday-Blitz-October-24-2023"]
[Site "Chess.com"]
[Date "2023.10.24"]
[Round "6"]
[White "Iskusnyh"]
[Black "kidagent"]
[Result "1-0"]
[WhiteElo "2581"]
[BlackElo "2271"]
[TimeControl "180+1"]
[EndTime "9:04:21 PDT"]
[Termination "Iskusnyh won by resignation"]

1. d4 {[%clk 0:03:00.9]} 1... d5 {[%clk 0:02:57]} 2. c4 {[%clk 0:03:00.6]} 2...
c6 {[%clk 0:02:56.3]} 3. Nf3 {[%clk 0:02:59.9]} 3... Nf6 {[%clk 0:02:56.4]} 4.
e3 {[%clk 0:02:58.9]} 4... e6 {[%clk 0:02:55.6]} 5. Bd3 {[%clk 0:02:56.3]} 5...
Nbd7 {[%clk 0:02:52.8]} 6. b3 {[%clk 0:02:55.7]} 6... Bd6 {[%clk 0:02:49.5]} 7.
Bb2 {[%clk 0:02:53.4]} 7... O-O {[%clk 0:02:48.2]} 8. O-O {[%clk 0:02:52.8]}
8... Qe7 {[%clk 0:02:48]} 9. Ne5 {[%clk 0:02:51]} 9... g6 {[%clk 0:02:41.1]} 10.
Nd2 {[%clk 0:02:47]} 10... Ne8 {[%clk 0:02:28.7]} 11. Qc2 {[%clk 0:02:40.1]}
11... Bxe5 {[%clk 0:02:24.3]} 12. dxe5 {[%clk 0:02:39.3]} 12... b6 {[%clk
0:02:15.5]} 13. cxd5 {[%clk 0:02:34.2]} 13... cxd5 {[%clk 0:02:13.9]} 14. Nf3
{[%clk 0:02:26.4]} 14... Bb7 {[%clk 0:02:12.4]} 15. Rac1 {[%clk 0:02:24.6]}
15... Rc8 {[%clk 0:02:07.4]} 16. Qd2 {[%clk 0:02:19.8]} 16... Ng7 {[%clk
0:02:01.2]} 17. h3 {[%clk 0:01:59.1]} 17... h5 {[%clk 0:01:56.2]} 18. Rfd1
{[%clk 0:01:39.3]} 18... Nc5 {[%clk 0:01:54]} 19. Bb1 {[%clk 0:01:37.5]} 19...
Rfd8 {[%clk 0:01:49.7]} 20. Nd4 {[%clk 0:01:35.4]} 20... h4 {[%clk 0:01:36.9]}
21. Qe1 {[%clk 0:01:32.9]} 21... Nh5 {[%clk 0:01:30]} 22. Ba3 {[%clk 0:01:30]}
22... Qg5 {[%clk 0:01:28.4]} 23. Nf3 {[%clk 0:01:24.6]} 23... Qe7 {[%clk
0:01:24.9]} 24. Qb4 {[%clk 0:01:24.1]} 24... Ng7 {[%clk 0:01:12.7]} 25. Nxh4
{[%clk 0:01:17.5]} 25... d4 {[%clk 0:00:48.8]} 26. Rxd4 {[%clk 0:01:05.4]} 26...
Rxd4 {[%clk 0:00:44.5]} 27. Qxd4 {[%clk 0:01:04]} 27... Rd8 {[%clk 0:00:45.2]}
28. Qg4 {[%clk 0:00:59.7]} 28... Nf5 {[%clk 0:00:35.9]} 29. Bxf5 {[%clk
0:00:57.8]} 29... exf5 {[%clk 0:00:34.8]} 30. Nxf5 {[%clk 0:00:57.3]} 30... Qf8
{[%clk 0:00:32.8]} 31. Nd6 {[%clk 0:00:55.6]} 31... Bc8 {[%clk 0:00:30.1]} 32.
Qh4 {[%clk 0:00:51.2]} 32... Ne6 {[%clk 0:00:23.7]} 33. Nc4 {[%clk 0:00:38.3]}
33... Qe8 {[%clk 0:00:20.1]} 34. Be7 {[%clk 0:00:37.8]} 34... Rd5 {[%clk
0:00:15.7]} 35. Nd6 {[%clk 0:00:37.1]} 1-0

[Event "Early-Titled-Tuesday-Blitz-October-24-2023"]
[Site "Chess.com"]
[Date "2023.10.24"]
[Round "6"]
[White "surrenderPLS"]
[Black "DarZay"]
[Result "1-0"]
[WhiteElo "2522"]
[BlackElo "2257"]
[TimeControl "180+1"]
[EndTime "9:04:25 PDT"]
[Termination "surrenderPLS won on time"]

1. e4 {[%clk 0:03:00.9]} 1... c5 {[%clk 0:02:49]} 2. Nf3 {[%clk 0:03:00.8]} 2...
Nc6 {[%clk 0:02:41.2]} 3. Nc3 {[%clk 0:03:00.5]} 3... Nf6 {[%clk 0:02:38]} 4.
Bb5 {[%clk 0:03:00.2]} 4... Nd4 {[%clk 0:02:16.1]} 5. O-O {[%clk 0:02:50.3]}
5... Nxb5 {[%clk 0:02:07.6]} 6. Nxb5 {[%clk 0:02:51.2]} 6... d6 {[%clk
0:02:07.5]} 7. Nc3 {[%clk 0:02:36]} 7... Bd7 {[%clk 0:01:38.7]} 8. d4 {[%clk
0:02:35.2]} 8... cxd4 {[%clk 0:01:32.2]} 9. Qxd4 {[%clk 0:02:32.1]} 9... e6
{[%clk 0:01:29.7]} 10. Qd3 {[%clk 0:01:53.9]} 10... Be7 {[%clk 0:01:27.9]} 11.
Bf4 {[%clk 0:01:53.7]} 11... Bc6 {[%clk 0:01:23.7]} 12. Rad1 {[%clk 0:01:53.2]}
12... e5 {[%clk 0:01:22.1]} 13. Bg5 {[%clk 0:01:53]} 13... O-O {[%clk
0:01:20.1]} 14. Bxf6 {[%clk 0:01:52.9]} 14... gxf6 {[%clk 0:01:16.5]} 15. Nh4
{[%clk 0:01:49.7]} 15... Bd7 {[%clk 0:01:09.1]} 16. Nd5 {[%clk 0:01:48.8]} 16...
f5 {[%clk 0:00:58.2]} 17. Nxf5 {[%clk 0:01:47.2]} 17... Bxf5 {[%clk 0:00:58.4]}
18. exf5 {[%clk 0:01:47.2]} 18... f6 {[%clk 0:00:52.4]} 19. Rfe1 {[%clk
0:01:39.1]} 19... Rc8 {[%clk 0:00:44.4]} 20. Re4 {[%clk 0:01:38.3]} 20... Kh8
{[%clk 0:00:39.4]} 21. c3 {[%clk 0:01:37.1]} 21... Rc6 {[%clk 0:00:25.9]} 22. a3
{[%clk 0:01:29.5]} 22... Rg8 {[%clk 0:00:23.2]} 23. g3 {[%clk 0:01:28.4]} 23...
b6 {[%clk 0:00:20.3]} 24. Rh4 {[%clk 0:01:18.3]} 24... Rg7 {[%clk 0:00:16.2]}
25. Qe4 {[%clk 0:01:18]} 25... b5 {[%clk 0:00:15.1]} 26. Nxe7 {[%clk 0:01:17.2]}
26... Rc4 {[%clk 0:00:12.5]} 27. Ng6+ {[%clk 0:00:54.5]} 27... Rxg6 {[%clk
0:00:10.3]} 28. Rxh7+ {[%clk 0:00:54.6]} 28... Kg8 {[%clk 0:00:08.9]} 29. Qd5+
{[%clk 0:00:50.7]} 29... Kxh7 {[%clk 0:00:08.5]} 30. fxg6+ {[%clk 0:00:49.6]}
30... Kxg6 {[%clk 0:00:08.4]} 31. Qxb5 {[%clk 0:00:48.5]} 31... Qc7 {[%clk
0:00:05.6]} 32. Rxd6 {[%clk 0:00:47.8]} 32... Rxc3 {[%clk 0:00:02.9]} 33. Qxe5
{[%clk 0:00:46.1]} 1-0

[Event "Early-Titled-Tuesday-Blitz-October-24-2023"]
[Site "Chess.com"]
[Date "2023.10.24"]
[Round "6"]
[White "AlexPapasimakopoulos"]
[Black "AndrewB92"]
[Result "1-0"]
[WhiteElo "2682"]
[BlackElo "2477"]
[TimeControl "180+1"]
[EndTime "9:04:26 PDT"]
[Termination "AlexPapasimakopoulos won by resignation"]

1. d4 {[%clk 0:03:00.9]} 1... Nf6 {[%clk 0:02:59.4]} 2. c4 {[%clk 0:02:59.8]}
2... e6 {[%clk 0:02:58.9]} 3. Nc3 {[%clk 0:03:00.4]} 3... d5 {[%clk 0:02:57.8]}
4. cxd5 {[%clk 0:03:00.4]} 4... exd5 {[%clk 0:02:57.6]} 5. Bg5 {[%clk
0:03:00.9]} 5... c6 {[%clk 0:02:56.6]} 6. e3 {[%clk 0:03:01.1]} 6... Bf5 {[%clk
0:02:56.1]} 7. Qf3 {[%clk 0:03:00.9]} 7... Bg6 {[%clk 0:02:55.8]} 8. Bxf6 {[%clk
0:03:01.3]} 8... Qxf6 {[%clk 0:02:55.7]} 9. Qxf6 {[%clk 0:03:01.9]} 9... gxf6
{[%clk 0:02:55.6]} 10. Nf3 {[%clk 0:02:56.8]} 10... Nd7 {[%clk 0:02:53.9]} 11.
Nh4 {[%clk 0:02:55.9]} 11... Bd6 {[%clk 0:02:50.7]} 12. Kd2 {[%clk 0:02:54.5]}
12... O-O-O {[%clk 0:02:45]} 13. Bd3 {[%clk 0:02:54.5]} 13... Rde8 {[%clk
0:02:42.1]} 14. Nf5 {[%clk 0:02:54.2]} 14... Bc7 {[%clk 0:02:35.1]} 15. Rac1
{[%clk 0:02:51.4]} 15... Kb8 {[%clk 0:02:29.4]} 16. h4 {[%clk 0:02:48.2]} 16...
h5 {[%clk 0:02:26.3]} 17. Rcg1 {[%clk 0:02:47.8]} 17... Nb6 {[%clk 0:02:12]} 18.
b3 {[%clk 0:02:42.9]} 18... Nc8 {[%clk 0:02:09.8]} 19. g4 {[%clk 0:02:35.5]}
19... Nd6 {[%clk 0:01:53.7]} 20. Nxd6 {[%clk 0:02:21.9]} 20... Bxd6 {[%clk
0:01:53.2]} 21. Bxg6 {[%clk 0:02:08.5]} 21... fxg6 {[%clk 0:01:51.9]} 22. gxh5
{[%clk 0:02:09]} 22... gxh5 {[%clk 0:01:47.8]} 23. Rg6 {[%clk 0:02:08.5]} 23...
Be7 {[%clk 0:01:42.6]} 24. Ne2 {[%clk 0:02:07.7]} 24... Reg8 {[%clk 0:01:39.7]}
25. Nf4 {[%clk 0:02:02.7]} 25... Bd8 {[%clk 0:01:27.2]} 26. Rxg8 {[%clk
0:01:54.2]} 26... Rxg8 {[%clk 0:01:26.8]} 27. Nxh5 {[%clk 0:01:54.9]} 27... f5
{[%clk 0:01:10]} 28. Ng3 {[%clk 0:01:37.6]} 28... f4 {[%clk 0:01:06.6]} 29. exf4
{[%clk 0:01:38.5]} 29... Rg4 {[%clk 0:00:59.3]} 30. h5 {[%clk 0:01:38.7]} 30...
Rxf4 {[%clk 0:00:58.5]} 31. h6 {[%clk 0:01:39.2]} 31... Rxf2+ {[%clk 0:00:55.2]}
32. Ke3 {[%clk 0:01:38.7]} 32... Rxa2 {[%clk 0:00:33]} 33. h7 {[%clk 0:01:34.2]}
33... Bf6 {[%clk 0:00:21.5]} 34. Rh6 {[%clk 0:01:28.4]} 34... Bh8 {[%clk
0:00:19.4]} 35. Rg6 {[%clk 0:01:26.9]} 35... Kc7 {[%clk 0:00:15.7]} 36. Rg8
{[%clk 0:01:25.7]} 36... Rg2 {[%clk 0:00:11.8]} 37. Kf3 {[%clk 0:01:23.8]} 37...
Rh2 {[%clk 0:00:11.2]} 38. Rxh8 {[%clk 0:01:23.9]} 38... Kb6 {[%clk 0:00:10.3]}
39. Kg4 {[%clk 0:01:20]} 39... Rxh7 {[%clk 0:00:08.1]} 40. Rxh7 {[%clk
0:01:19.8]} 40... a5 {[%clk 0:00:08.2]} 41. Kf4 {[%clk 0:01:19.4]} 41... Ka6
{[%clk 0:00:06.7]} 42. Ke3 {[%clk 0:01:19.4]} 42... b6 {[%clk 0:00:06.9]} 43.
Nf5 {[%clk 0:01:19.2]} 43... Kb5 {[%clk 0:00:05.8]} 44. Rb7 {[%clk 0:01:18.1]}
44... c5 {[%clk 0:00:04.6]} 45. dxc5 {[%clk 0:01:16.5]} 45... Kxc5 {[%clk
0:00:05]} 46. Nd4 {[%clk 0:01:15.2]} 46... a4 {[%clk 0:00:03.9]} 47. bxa4 {[%clk
0:01:13.3]} 1-0

[Event "Early-Titled-Tuesday-Blitz-October-24-2023"]
[Site "Chess.com"]
[Date "2023.10.24"]
[Round "6"]
[White "Vesper2018"]
[Black "diamonds13"]
[Result "1-0"]
[WhiteElo "2592"]
[BlackElo "2315"]
[TimeControl "180+1"]
[EndTime "9:04:27 PDT"]
[Termination "Vesper2018 won by resignation"]

1. e4 {[%clk 0:03:00.9]} 1... c5 {[%clk 0:03:00]} 2. Nc3 {[%clk 0:03:00.6]} 2...
Nc6 {[%clk 0:03:00]} 3. Bb5 {[%clk 0:03:00.6]} 3... Nd4 {[%clk 0:03:00]} 4. Bc4
{[%clk 0:02:58.2]} 4... e6 {[%clk 0:02:59.9]} 5. Nge2 {[%clk 0:02:58.3]} 5... a6
{[%clk 0:02:59.7]} 6. a4 {[%clk 0:02:58.1]} 6... Nf6 {[%clk 0:02:56.2]} 7. O-O
{[%clk 0:02:57.1]} 7... d5 {[%clk 0:02:55.6]} 8. exd5 {[%clk 0:02:57.2]} 8...
exd5 {[%clk 0:02:55.5]} 9. Ba2 {[%clk 0:02:57.3]} 9... Be7 {[%clk 0:02:53.9]}
10. Nxd4 {[%clk 0:02:45.1]} 10... cxd4 {[%clk 0:02:53.5]} 11. Ne2 {[%clk
0:02:45.8]} 11... d3 {[%clk 0:02:52.5]} 12. cxd3 {[%clk 0:02:45.8]} 12... d4
{[%clk 0:02:52.1]} 13. b4 {[%clk 0:02:24.9]} 13... Bf5 {[%clk 0:02:49.5]} 14.
Bb2 {[%clk 0:02:21.9]} 14... Bxd3 {[%clk 0:02:49.2]} 15. Bxf7+ {[%clk
0:02:01.1]} 15... Kf8 {[%clk 0:02:45.8]} 16. Nf4 {[%clk 0:01:50.2]} 16... Bf5
{[%clk 0:02:41.9]} 17. Ne6+ {[%clk 0:01:42.8]} 17... Bxe6 {[%clk 0:02:41.8]} 18.
Bxe6 {[%clk 0:01:43.2]} 18... Qd6 {[%clk 0:02:42.4]} 19. Re1 {[%clk 0:01:40.2]}
19... Re8 {[%clk 0:02:30.2]} 20. Qf3 {[%clk 0:01:38]} 20... h5 {[%clk
0:02:14.1]} 21. Qxb7 {[%clk 0:01:32.5]} 21... Ng4 {[%clk 0:02:12.9]} 22. g3
{[%clk 0:01:20.7]} 22... Ne5 {[%clk 0:02:07.2]} 23. Bf5 {[%clk 0:01:09.9]} 23...
h4 {[%clk 0:01:57.2]} 24. Qe4 {[%clk 0:01:03.7]} 24... Bf6 {[%clk 0:01:53.7]}
25. f4 {[%clk 0:00:55.5]} 25... hxg3 {[%clk 0:01:41.4]} 26. hxg3 {[%clk
0:00:55.2]} 26... Qb8 {[%clk 0:01:15.1]} 27. fxe5 {[%clk 0:00:53.9]} 27... Rxe5
{[%clk 0:01:15.1]} 28. Qf3 {[%clk 0:00:51.5]} 28... Rh5 {[%clk 0:01:04.3]} 29.
Bg4 {[%clk 0:00:46]} 29... Rhg5 {[%clk 0:00:55.6]} 30. b5 {[%clk 0:00:41.2]}
30... Kg8 {[%clk 0:00:48.3]} 31. Rxe5 {[%clk 0:00:27.9]} 31... Rxe5 {[%clk
0:00:26.7]} 32. Rc1 {[%clk 0:00:27.6]} 32... axb5 {[%clk 0:00:14.4]} 33. Rc8+
{[%clk 0:00:27.1]} 1-0

[Event "Early-Titled-Tuesday-Blitz-October-24-2023"]
[Site "Chess.com"]
[Date "2023.10.24"]
[Round "6"]
[White "Iball95"]
[Black "Grischuk"]
[Result "1/2-1/2"]
[WhiteElo "2857"]
[BlackElo "2993"]
[TimeControl "180+1"]
[EndTime "9:04:29 PDT"]
[Termination "Game drawn by repetition"]

1. e4 {[%clk 0:02:59.5]} 1... e5 {[%clk 0:02:59.8]} 2. Nf3 {[%clk 0:02:59.8]}
2... Nc6 {[%clk 0:03:00.1]} 3. Nc3 {[%clk 0:03:00.4]} 3... Nf6 {[%clk
0:02:59.9]} 4. Bb5 {[%clk 0:03:00.9]} 4... Bd6 {[%clk 0:02:53.1]} 5. a3 {[%clk
0:03:00.8]} 5... O-O {[%clk 0:02:52.7]} 6. d3 {[%clk 0:03:01]} 6... a6 {[%clk
0:02:40.6]} 7. Bc4 {[%clk 0:03:00.8]} 7... Be7 {[%clk 0:02:37.1]} 8. h3 {[%clk
0:02:53.8]} 8... d6 {[%clk 0:02:36.8]} 9. Nd5 {[%clk 0:02:47.8]} 9... Nxd5
{[%clk 0:02:35]} 10. Bxd5 {[%clk 0:02:48.7]} 10... Kh8 {[%clk 0:02:32.5]} 11. d4
{[%clk 0:02:21.6]} 11... Nxd4 {[%clk 0:02:26.4]} 12. Nxd4 {[%clk 0:02:22.5]}
12... exd4 {[%clk 0:02:27.2]} 13. Qxd4 {[%clk 0:02:21.5]} 13... c6 {[%clk
0:02:22.4]} 14. Ba2 {[%clk 0:02:14.2]} 14... f5 {[%clk 0:02:22]} 15. O-O {[%clk
0:02:06.1]} 15... Bf6 {[%clk 0:02:21.5]} 16. Qd3 {[%clk 0:02:04.1]} 16... fxe4
{[%clk 0:02:21.1]} 17. Qxe4 {[%clk 0:02:05]} 17... d5 {[%clk 0:02:21.7]} 18. Qd3
{[%clk 0:02:04.3]} 18... Be5 {[%clk 0:02:15.5]} 19. c3 {[%clk 0:02:00.5]} 19...
Bf5 {[%clk 0:02:15.2]} 20. Qe2 {[%clk 0:01:59.3]} 20... Qf6 {[%clk 0:02:09.9]}
21. Be3 {[%clk 0:01:52.7]} 21... Rae8 {[%clk 0:02:08.9]} 22. Rae1 {[%clk
0:01:51.8]} 22... Qg6 {[%clk 0:02:05]} 23. Kh1 {[%clk 0:01:51.7]} 23... Bd3
{[%clk 0:02:04.3]} 24. Bb1 {[%clk 0:01:47.1]} 24... Bxb1 {[%clk 0:01:44.9]} 25.
Rxb1 {[%clk 0:01:48]} 25... Bf4 {[%clk 0:01:38]} 26. Rbe1 {[%clk 0:01:33.2]}
26... Bxe3 {[%clk 0:01:37.3]} 27. fxe3 {[%clk 0:01:33.5]} 27... Rxf1+ {[%clk
0:01:29.9]} 28. Rxf1 {[%clk 0:01:34.3]} 28... h6 {[%clk 0:01:30.4]} 29. Rf3
{[%clk 0:01:26.3]} 29... Kh7 {[%clk 0:01:27.7]} 30. Qf2 {[%clk 0:01:22.2]} 30...
Re6 {[%clk 0:01:08.5]} 31. Rf7 {[%clk 0:01:13]} 31... b5 {[%clk 0:01:07.2]} 32.
Kh2 {[%clk 0:00:57.5]} 32... a5 {[%clk 0:01:05.2]} 33. Rf4 {[%clk 0:00:55.3]}
33... a4 {[%clk 0:00:54]} 34. Kh1 {[%clk 0:00:54.4]} 34... Qd3 {[%clk
0:00:48.3]} 35. Rf3 {[%clk 0:00:37.4]} 35... Qe4 {[%clk 0:00:47.2]} 36. Kh2
{[%clk 0:00:37.4]} 36... Qe5+ {[%clk 0:00:45.1]} 37. Kh1 {[%clk 0:00:36.5]}
37... Rg6 {[%clk 0:00:43.9]} 38. Rf4 {[%clk 0:00:35.9]} 38... Re6 {[%clk
0:00:42.1]} 39. Rf3 {[%clk 0:00:36.2]} 39... Qe4 {[%clk 0:00:38.4]} 40. Kh2
{[%clk 0:00:35.9]} 40... Re7 {[%clk 0:00:36.7]} 41. Kh1 {[%clk 0:00:35.7]} 41...
Re6 {[%clk 0:00:32.1]} 1/2-1/2

[Event "Early-Titled-Tuesday-Blitz-October-24-2023"]
[Site "Chess.com"]
[Date "2023.10.24"]
[Round "6"]
[White "Blitzstream"]
[Black "Aswathchess"]
[Result "1-0"]
[WhiteElo "2851"]
[BlackElo "2656"]
[TimeControl "180+1"]
[EndTime "9:04:29 PDT"]
[Termination "Blitzstream won by checkmate"]

1. d4 {[%clk 0:03:00.9]} 1... Nf6 {[%clk 0:02:56.7]} 2. Bg5 {[%clk 0:03:00.8]}
2... d5 {[%clk 0:02:54.1]} 3. Nd2 {[%clk 0:03:00.6]} 3... c6 {[%clk 0:02:52.3]}
4. e3 {[%clk 0:02:58]} 4... h6 {[%clk 0:02:51.2]} 5. Bxf6 {[%clk 0:02:56.9]}
5... exf6 {[%clk 0:02:52.1]} 6. c4 {[%clk 0:02:56.7]} 6... dxc4 {[%clk
0:02:51.5]} 7. Bxc4 {[%clk 0:02:55.9]} 7... Bd6 {[%clk 0:02:51.6]} 8. Ngf3
{[%clk 0:02:56.3]} 8... O-O {[%clk 0:02:51.7]} 9. O-O {[%clk 0:02:56.9]} 9...
Nd7 {[%clk 0:02:51.3]} 10. Re1 {[%clk 0:02:49.3]} 10... Nb6 {[%clk 0:02:48.5]}
11. Bf1 {[%clk 0:02:49.2]} 11... Bg4 {[%clk 0:02:48.7]} 12. g3 {[%clk
0:02:46.6]} 12... Re8 {[%clk 0:02:47.7]} 13. Bg2 {[%clk 0:02:46.4]} 13... Bc7
{[%clk 0:02:46.3]} 14. Qc2 {[%clk 0:02:42.9]} 14... Nd5 {[%clk 0:02:46]} 15. a3
{[%clk 0:02:41.9]} 15... Qd7 {[%clk 0:02:39.5]} 16. Rac1 {[%clk 0:02:27]} 16...
Bd6 {[%clk 0:02:02.8]} 17. Nb3 {[%clk 0:02:20.1]} 17... Rac8 {[%clk 0:02:02.4]}
18. Nc5 {[%clk 0:02:19]} 18... Qe7 {[%clk 0:02:01.5]} 19. Nh4 {[%clk 0:02:14.3]}
19... b6 {[%clk 0:01:57.8]} 20. h3 {[%clk 0:01:37.8]} 20... bxc5 {[%clk
0:01:52.9]} 21. hxg4 {[%clk 0:01:37.6]} 21... cxd4 {[%clk 0:01:47.9]} 22. Nf5
{[%clk 0:00:44.1]} 22... Qd7 {[%clk 0:01:45.3]} 23. exd4 {[%clk 0:00:33.2]}
23... Rxe1+ {[%clk 0:01:37.7]} 24. Rxe1 {[%clk 0:00:34.1]} 24... Bf8 {[%clk
0:01:35.5]} 25. Rc1 {[%clk 0:00:33.1]} 25... g6 {[%clk 0:01:34.6]} 26. Nh4
{[%clk 0:00:30]} 26... c5 {[%clk 0:01:20.9]} 27. Qb3 {[%clk 0:00:21.6]} 27...
Nb6 {[%clk 0:01:10.6]} 28. dxc5 {[%clk 0:00:18.7]} 28... Rxc5 {[%clk 0:01:10.1]}
29. Rxc5 {[%clk 0:00:11.5]} 29... Bxc5 {[%clk 0:01:11]} 30. Nxg6 {[%clk
0:00:11.1]} 30... Qd4 {[%clk 0:01:11.1]} 31. Nf4 {[%clk 0:00:05.1]} 31... Qxf2+
{[%clk 0:01:10.6]} 32. Kh2 {[%clk 0:00:05.7]} 32... Be3 {[%clk 0:01:09.5]} 33.
Qb4 {[%clk 0:00:03.1]} 33... a5 {[%clk 0:01:02.9]} 34. Qe4 {[%clk 0:00:03.3]}
34... Qe1 {[%clk 0:01:01.6]} 35. Qf3 {[%clk 0:00:03.3]} 35... Nc4 {[%clk
0:00:59.5]} 36. Nh5 {[%clk 0:00:03]} 36... Bg5 {[%clk 0:00:56.3]} 37. Qa8+
{[%clk 0:00:02.9]} 37... Kh7 {[%clk 0:00:55.6]} 38. Be4+ {[%clk 0:00:03.5]}
38... f5 {[%clk 0:00:50.9]} 39. Bxf5# {[%clk 0:00:03.6]} 1-0

[Event "Early-Titled-Tuesday-Blitz-October-24-2023"]
[Site "Chess.com"]
[Date "2023.10.24"]
[Round "6"]
[White "Makswolf200817"]
[Black "santosalberto1987"]
[Result "0-1"]
[WhiteElo "2615"]
[BlackElo "2420"]
[TimeControl "180+1"]
[EndTime "9:04:30 PDT"]
[Termination "santosalberto1987 won by resignation"]

1. e4 {[%clk 0:03:00.9]} 1... e6 {[%clk 0:02:59.6]} 2. d4 {[%clk 0:02:59.5]}
2... d5 {[%clk 0:02:59.8]} 3. Nc3 {[%clk 0:02:58.8]} 3... Nf6 {[%clk 0:02:59.8]}
4. Bg5 {[%clk 0:02:55.8]} 4... Bb4 {[%clk 0:02:59.5]} 5. e5 {[%clk 0:02:51.2]}
5... h6 {[%clk 0:02:59.4]} 6. Bd2 {[%clk 0:02:50.5]} 6... Bxc3 {[%clk
0:02:59.3]} 7. bxc3 {[%clk 0:02:50.7]} 7... Ne4 {[%clk 0:02:59.9]} 8. Bc1 {[%clk
0:02:44.9]} 8... c5 {[%clk 0:02:58]} 9. Ne2 {[%clk 0:02:26.3]} 9... cxd4 {[%clk
0:02:44.2]} 10. cxd4 {[%clk 0:02:25.4]} 10... Qa5+ {[%clk 0:02:43.2]} 11. c3
{[%clk 0:02:25.1]} 11... Nc6 {[%clk 0:02:37.8]} 12. Qc2 {[%clk 0:02:15.7]} 12...
Bd7 {[%clk 0:02:32.4]} 13. f3 {[%clk 0:02:10]} 13... Ng5 {[%clk 0:02:32.2]} 14.
h4 {[%clk 0:02:08.6]} 14... Nh7 {[%clk 0:02:30.8]} 15. Kf2 {[%clk 0:02:08.1]}
15... Rc8 {[%clk 0:02:29.7]} 16. a4 {[%clk 0:02:05.9]} 16... Qd8 {[%clk
0:02:06.9]} 17. Ba3 {[%clk 0:01:58.3]} 17... Na5 {[%clk 0:02:06.8]} 18. Rh3
{[%clk 0:01:43.6]} 18... Nc4 {[%clk 0:02:06.6]} 19. Bc1 {[%clk 0:01:43.8]} 19...
O-O {[%clk 0:02:00.6]} 20. Nf4 {[%clk 0:01:42.5]} 20... f5 {[%clk 0:01:35.5]}
21. exf6 {[%clk 0:01:30]} 21... Nxf6 {[%clk 0:01:34.7]} 22. Ng6 {[%clk 0:01:26]}
22... Re8 {[%clk 0:01:29.5]} 23. Bxc4 {[%clk 0:01:14]} 23... Rxc4 {[%clk
0:01:27.8]} 24. Ne5 {[%clk 0:01:14]} 24... Rf8 {[%clk 0:01:11.1]} 25. Nxc4
{[%clk 0:01:08.5]} 25... dxc4 {[%clk 0:01:11.3]} 26. Kg1 {[%clk 0:01:07.1]}
26... e5 {[%clk 0:01:08.1]} 27. Rg3 {[%clk 0:01:07.2]} 27... exd4 {[%clk
0:00:58.3]} 28. cxd4 {[%clk 0:01:05.8]} 28... Kh8 {[%clk 0:00:49.5]} 29. Qg6
{[%clk 0:00:56.8]} 29... Qe7 {[%clk 0:00:43.6]} 30. Ba3 {[%clk 0:00:55.2]} 30...
Qe3+ {[%clk 0:00:43.3]} 31. Kh2 {[%clk 0:00:54.5]} 31... Rg8 {[%clk 0:00:38.4]}
32. Rb1 {[%clk 0:00:37.2]} 32... Qxa3 {[%clk 0:00:33]} 33. Rxb7 {[%clk
0:00:34.6]} 33... Qd6 {[%clk 0:00:31.9]} 34. Kh1 {[%clk 0:00:29.7]} 34... c3
{[%clk 0:00:28.3]} 35. Rb3 {[%clk 0:00:24.8]} 35... Qxd4 {[%clk 0:00:27.1]} 36.
Qc2 {[%clk 0:00:23.1]} 36... Qxh4+ {[%clk 0:00:25.7]} 0-1

[Event "Early-Titled-Tuesday-Blitz-October-24-2023"]
[Site "Chess.com"]
[Date "2023.10.24"]
[Round "6"]
[White "mariaesthergranados"]
[Black "YairParkhov"]
[Result "0-1"]
[WhiteElo "2122"]
[BlackElo "2655"]
[TimeControl "180+1"]
[EndTime "9:04:30 PDT"]
[Termination "YairParkhov won by resignation"]

1. e4 {[%clk 0:03:00.9]} 1... c6 {[%clk 0:02:54.6]} 2. Nc3 {[%clk 0:03:01]} 2...
d5 {[%clk 0:02:55.5]} 3. Nf3 {[%clk 0:03:01.4]} 3... dxe4 {[%clk 0:02:53.5]} 4.
Nxe4 {[%clk 0:03:02.3]} 4... Nf6 {[%clk 0:02:53.9]} 5. Qe2 {[%clk 0:03:03.2]}
5... Nxe4 {[%clk 0:02:54]} 6. Qxe4 {[%clk 0:03:04.1]} 6... Qa5 {[%clk
0:02:54.4]} 7. b4 {[%clk 0:02:57.4]} 7... Qf5 {[%clk 0:02:53.4]} 8. Bd3 {[%clk
0:02:50.7]} 8... Qxe4+ {[%clk 0:02:51.8]} 9. Bxe4 {[%clk 0:02:51.6]} 9... Nd7
{[%clk 0:02:49.6]} 10. O-O {[%clk 0:02:43.6]} 10... Nf6 {[%clk 0:02:44.3]} 11.
Bd3 {[%clk 0:02:43.4]} 11... Bg4 {[%clk 0:02:26.3]} 12. Ne5 {[%clk 0:02:39.7]}
12... a6 {[%clk 0:02:21.1]} 13. Nxg4 {[%clk 0:02:38]} 13... Nxg4 {[%clk
0:02:21.4]} 14. Re1 {[%clk 0:02:38.7]} 14... e6 {[%clk 0:02:20.9]} 15. a3 {[%clk
0:02:34.8]} 15... Bd6 {[%clk 0:02:20.9]} 16. h3 {[%clk 0:02:34.2]} 16... Ne5
{[%clk 0:02:20.6]} 17. Be2 {[%clk 0:02:25.2]} 17... O-O {[%clk 0:02:19.6]} 18.
d4 {[%clk 0:02:20.2]} 18... Ng6 {[%clk 0:02:19.8]} 19. c4 {[%clk 0:02:19.5]}
19... Rfd8 {[%clk 0:02:18.8]} 20. Bb2 {[%clk 0:02:18.9]} 20... Be7 {[%clk
0:02:17.2]} 21. Rad1 {[%clk 0:02:13.3]} 21... Bf6 {[%clk 0:02:15.4]} 22. Ba1
{[%clk 0:02:12.1]} 22... Ne7 {[%clk 0:02:08.7]} 23. Bf3 {[%clk 0:02:10.8]} 23...
a5 {[%clk 0:02:06.9]} 24. b5 {[%clk 0:02:08.5]} 24... cxb5 {[%clk 0:02:07.1]}
25. cxb5 {[%clk 0:01:57.8]} 25... Nd5 {[%clk 0:02:05.4]} 26. Rc1 {[%clk
0:01:52.9]} 26... Rac8 {[%clk 0:02:05.2]} 27. Red1 {[%clk 0:01:49.9]} 27... Be7
{[%clk 0:01:59]} 28. Bb2 {[%clk 0:01:47.2]} 28... Bg5 {[%clk 0:01:52.7]} 29. Rc5
{[%clk 0:01:38]} 29... b6 {[%clk 0:01:52.1]} 30. Rxc8 {[%clk 0:01:15.6]} 30...
Rxc8 {[%clk 0:01:52.7]} 31. Bxd5 {[%clk 0:01:11.7]} 31... exd5 {[%clk
0:01:53.6]} 32. Re1 {[%clk 0:01:02.1]} 32... Bf6 {[%clk 0:01:48.6]} 33. Rd1
{[%clk 0:00:33.4]} 33... a4 {[%clk 0:01:44]} 34. Kf1 {[%clk 0:00:31.6]} 34...
Rc2 {[%clk 0:01:33.7]} 35. Ba1 {[%clk 0:00:21.6]} 35... g6 {[%clk 0:01:30.4]}
36. Ke1 {[%clk 0:00:20.4]} 36... Be7 {[%clk 0:01:30.5]} 37. Rd2 {[%clk
0:00:16.4]} 37... Rc1+ {[%clk 0:01:29.6]} 38. Rd1 {[%clk 0:00:16.4]} 38... Bxa3
{[%clk 0:01:28.3]} 39. Rxc1 {[%clk 0:00:14.8]} 39... Bxc1 {[%clk 0:01:29.2]} 40.
Kd1 {[%clk 0:00:15.5]} 40... Ba3 {[%clk 0:01:29.4]} 41. Kc2 {[%clk 0:00:15.7]}
41... Bd6 {[%clk 0:01:29.6]} 42. Bc3 {[%clk 0:00:15.1]} 42... Kf8 {[%clk
0:01:30]} 43. Bd2 {[%clk 0:00:14.9]} 43... Ke7 {[%clk 0:01:30.5]} 44. Bg5+
{[%clk 0:00:14.4]} 44... Ke6 {[%clk 0:01:30.5]} 45. Bd8 {[%clk 0:00:14.5]} 45...
h5 {[%clk 0:01:30]} 46. Bxb6 {[%clk 0:00:14.9]} 46... Kd7 {[%clk 0:01:27.4]} 47.
Bc5 {[%clk 0:00:15.1]} 47... Bxc5 {[%clk 0:01:25]} 48. dxc5 {[%clk 0:00:16]}
48... d4 {[%clk 0:01:25.6]} 49. b6 {[%clk 0:00:12.1]} 49... Kc6 {[%clk
0:01:25.7]} 50. Kd3 {[%clk 0:00:08.1]} 50... a3 {[%clk 0:01:24.9]} 51. Kc2
{[%clk 0:00:08.2]} 51... a2 {[%clk 0:01:20.5]} 52. Kb2 {[%clk 0:00:07.8]} 52...
d3 {[%clk 0:01:21]} 53. b7 {[%clk 0:00:06.2]} 53... Kxb7 {[%clk 0:01:21.2]} 54.
Kxa2 {[%clk 0:00:06.1]} 54... d2 {[%clk 0:01:21.7]} 55. Kb2 {[%clk 0:00:06.2]}
55... d1=Q {[%clk 0:01:22.1]} 0-1